fUST/lending_fUST_20250925
["ID","MTS","AMOUNT","RATE_DAILY","PERIOD"]
[387440850,1758730250844,-542.43770978,0.00020273,2]
[387440859,1758730250943,-519.16,0.00020273,2]
[387440861,1758730250953,-480.0,0.00020273,2]
[387440863,1758730250963,-612.59,0.00020273,2]
[387440865,1758730250973,-480.0,0.00020273,2]
[387440867,1758730250982,-480.0,0.00020273,2]
[387440870,1758730250992,-480.0,0.00020273,2]
[387440872,1758730251002,-480.0,0.00020273,2]
[387440874,1758730251011,-480.0,0.00020273,2]
[387440876,1758730251020,-480.0,0.00020273,2]
[387440878,1758730251029,-480.0,0.00020273,2]
[387440879,1758730251039,-480.0,0.00020273,2]
[387440882,1758730251048,-480.0,0.00020273,2]
[387440883,1758730251058,-496.58980733,0.00020273,2]
[387440885,1758730251067,-1050.42,0.00020273,2]
[387440887,1758730251076,-480.0,0.00020273,2]
[387440889,1758730251086,-480.0,0.00020273,2]
[387440891,1758730251095,-480.0,0.00020273,2]
[387440893,1758730251104,-480.0,0.00020273,2]
[387440896,1758730251115,-480.0,0.00020273,2]
[387440898,1758730251125,-722.17,0.00020273,2]
[387440900,1758730251134,-480.0,0.00020273,2]
[387440901,1758730251144,-480.0,0.00020273,2]
[387440904,1758730251153,-480.62,0.00020273,2]
[387440906,1758730251162,-534.76575564,0.00020273,2]
[387440907,1758730251172,-480.0,0.00020273,2]
[387440909,1758730251181,-480.0,0.00020273,2]
[387440911,1758730251191,-480.0,0.00020273,2]
[387440913,1758730251200,-511.65,0.00020273,2]
[387440916,1758730251210,-480.0,0.00020273,2]
[387440918,1758730251219,-480.0,0.00020273,2]
[387440920,1758730251228,-839.84,0.00020273,2]
[387440921,1758730251237,-480.0,0.00020273,2]
[387440923,1758730251246,-151.0,0.000203,4]
[387440925,1758730251255,-326.53,0.0002038,2]
[387440928,1758730251265,-164.12552969,0.00020454,2]
[387440929,1758730251274,-480.0,0.00020547,2]
[387440931,1758730251283,-480.0,0.00020547,2]
[387440934,1758730251293,-248.18780547,0.00020547,2]
[387440936,1758730251303,-151.0,0.00020547,2]
[387440937,1758730251311,-151.0,0.00020547,2]
[387440939,1758730251321,-152.497499,0.00020547,2]
[387440941,1758730251330,-151.0,0.00020547,2]
[387440943,1758730251340,-538.80000642,0.00020547,2]
[387440945,1758730251349,-480.0,0.00020547,2]
[387440947,1758730251359,-480.0,0.00020547,2]
[387440949,1758730251368,-480.0,0.00020547,2]
[387440951,1758730251379,-480.0,0.00020547,2]
[387440954,1758730251388,-480.0,0.00020547,2]
[387440955,1758730251397,-1050.42,0.00020547,2]
[387440958,1758730251406,-480.0,0.00020547,2]
[387440960,1758730251416,-480.0,0.00020547,2]
[387440962,1758730251425,-480.0,0.00020547,2]
[387440964,1758730251435,-480.0,0.00020547,2]
[387440966,1758730251444,-480.0,0.00020547,2]
[387440968,1758730251453,-722.17,0.00020547,2]
[387440970,1758730251462,-480.0,0.00020547,2]
[387440972,1758730251473,-480.0,0.00020547,2]
[387440974,1758730251482,-480.62,0.00020547,2]
[387440976,1758730251491,-480.0,0.00020547,2]
[387440978,1758730251501,-480.0,0.00020547,2]
[387440980,1758730251510,-511.65,0.00020547,2]
[387440982,1758730251519,-480.0,0.00020547,2]
[387440984,1758730251529,-839.84,0.00020547,2]
[387440986,1758730251539,-508.0,0.00020609,2]
[387440988,1758730251548,-480.0,0.00020821,2]
[387440990,1758730251557,-480.0,0.00020821,2]
[387440992,1758730251567,-480.0,0.00020821,2]
[387440994,1758730251576,-480.0,0.00020821,2]
[387440996,1758730251585,-480.0,0.00020821,2]
[387440998,1758730251595,-1050.42,0.00020821,2]
[387441000,1758730251604,-480.0,0.00020821,2]
[387441002,1758730251613,-480.0,0.00020821,2]
[387441004,1758730251624,-480.0,0.00020821,2]
[387441006,1758730251634,-480.0,0.00020821,2]
[387441008,1758730251644,-480.0,0.00020821,2]
[387441010,1758730251653,-722.17,0.00020821,2]
[387441012,1758730251663,-480.0,0.00020821,2]
[387441014,1758730251672,-621.90071563,0.00020821,2]
[387441016,1758730251682,-480.62,0.00020821,2]
[387441018,1758730251691,-480.0,0.00020821,2]
[387441020,1758730251700,-480.0,0.00020821,2]
[387441022,1758730251709,-511.65,0.00020821,2]
[387441024,1758730251718,-480.0,0.00020821,2]
[387441026,1758730251727,-839.84,0.00020821,2]
[387441028,1758730251739,-420.0,0.00020898,2]
[387441030,1758730251748,-2786.951718,0.00020972,2]
[387441032,1758730251758,-160.0,0.00021,2]
[387441034,1758730251767,-251.78533325,0.00021095,2]
[387441036,1758730251777,-480.0,0.00021095,2]
[387441038,1758730251787,-412.95384087,0.00021095,2]
[387441040,1758730251797,-386.14820767,0.00021095,2]
[387441042,1758730251807,-480.0,0.00021095,2]
[387441044,1758730251822,-1050.42,0.00021095,2]
[387441046,1758730251831,-480.0,0.00021095,2]
[387441049,1758730251840,-480.0,0.00021095,2]
[387441050,1758730251851,-480.0,0.00021095,2]
[387441052,1758730251861,-480.0,0.00021095,2]
[387441054,1758730251870,-480.0,0.00021095,2]
[387441057,1758730251881,-722.17,0.00021095,2]
[387441059,1758730251891,-480.0,0.00021095,2]
[387441061,1758730251901,-480.62,0.00021095,2]
[387441063,1758730251910,-480.0,0.00021095,2]
[387441065,1758730251919,-480.0,0.00021095,2]
[387441067,1758730251929,-511.65,0.00021095,2]
[387441069,1758730251938,-480.0,0.00021095,2]
[387441071,1758730251947,-839.84,0.00021095,2]
[387441073,1758730251956,-480.0,0.00021369,2]
[387441075,1758730251966,-480.0,0.00021369,2]
[387441077,1758730251975,-1050.42,0.00021369,2]
[387441079,1758730251985,-480.0,0.00021369,2]
[387441081,1758730251994,-480.0,0.00021369,2]
[387441083,1758730252003,-480.0,0.00021369,2]
[387441085,1758730252013,-480.0,0.00021369,2]
[387441087,1758730252022,-480.0,0.00021369,2]
[387441089,1758730252031,-722.17,0.00021369,2]
[387441091,1758730252041,-480.0,0.00021369,2]
[387441093,1758730252051,-480.62,0.00021369,2]
[387441094,1758730252060,-480.0,0.00021369,2]
[387441096,1758730252070,-480.0,0.00021369,2]
[387441099,1758730252080,-511.65,0.00021369,2]
[387441101,1758730252090,-480.0,0.00021369,2]
[387441103,1758730252099,-839.84,0.00021369,2]
[387441105,1758730252108,-532.2324375,0.0002145,2]
[387441107,1758730252117,-160.0,0.0002145,2]
[387441109,1758730252127,-160.0,0.0002145,2]
[387441111,1758730252135,-160.0,0.0002145,2]
[387441113,1758730252144,-160.0,0.0002145,2]
[387441115,1758730252153,-762.0,0.00021546,2]
[387441117,1758730252162,-260.0,0.00021548,2]
[387441119,1758730252172,-151.0,0.00021643,2]
[387441121,1758730252181,-480.0,0.00021643,2]
[387441123,1758730252191,-480.0,0.00021643,2]
[387441125,1758730252200,-1050.42,0.00021643,2]
[387441127,1758730252210,-480.0,0.00021643,2]
[387441129,1758730252220,-480.0,0.00021643,2]
[387441131,1758730252229,-480.0,0.00021643,2]
[387441133,1758730252238,-480.0,0.00021643,2]
[387441135,1758730252247,-480.0,0.00021643,2]
[387441137,1758730252256,-722.17,0.00021643,2]
[387441139,1758730252266,-480.0,0.00021643,2]
[387441141,1758730252275,-480.62,0.00021643,2]
[387441143,1758730252285,-480.0,0.00021643,2]
[387441145,1758730252294,-480.0,0.00021643,2]
[387441147,1758730252304,-511.65,0.00021643,2]
[387441149,1758730252314,-480.0,0.00021643,2]
[387441151,1758730252323,-839.84,0.00021643,2]
[387441153,1758730252332,-380.9760507,0.00021916,2]
[387441155,1758730252342,-480.0,0.00021917,2]
[387441157,1758730252352,-480.0,0.00021917,2]
[387441159,1758730252361,-1050.42,0.00021917,2]
[387441161,1758730252371,-558.6830278,0.00021917,2]
[387441163,1758730252382,-214.09629055,0.00021917,2]
[387441165,1758730252392,-563.44402218,0.00021917,2]
[387441167,1758730252401,-480.0,0.00021917,2]
[387441169,1758730252410,-480.0,0.00021917,2]
[387441171,1758730252419,-722.17,0.00021917,2]
[387441173,1758730252429,-166.4406102,0.00021917,2]
[387441175,1758730252438,-480.62,0.00021917,2]
[387441177,1758730252448,-315.07614706,0.00021917,2]
[387441188,1758730252542,-164.92385294,0.00021917,2]
[387441191,1758730252552,-480.0,0.00021917,2]
[387441193,1758730252561,-468.13354971,0.00021917,2]
[387441195,1758730252573,-43.51645029,0.00021917,2]
[387441197,1758730252582,-480.0,0.00021917,2]
[387441199,1758730252592,-839.84,0.00021917,2]
[387441201,1758730252602,-271.675504,0.00021917,2]
[387441203,1758730252611,-170.347687,0.00021917,2]
[387441205,1758730252620,-170.347687,0.00021917,2]
[387441207,1758730252631,-410.0,0.00021968,2]
[387441209,1758730252640,-2786.951718,0.00022044,2]
[387441211,1758730252651,-360.0,0.00022096,2]
[387441213,1758730252660,-480.0,0.0002219,2]
[387441215,1758730252669,-480.0,0.0002219,2]
[387441217,1758730252679,-480.0,0.0002219,2]
[387441219,1758730252688,-151.0,0.00022191,7]
[387441221,1758730252697,-151.0,0.00022191,7]
[387441223,1758730252707,-480.0,0.00022191,2]
[387441225,1758730252716,-480.0,0.00022191,2]
[387441227,1758730252726,-1050.42,0.00022191,2]
[387441229,1758730252735,-480.0,0.00022191,2]
[387441231,1758730252745,-722.17,0.00022191,2]
[387441233,1758730252754,-480.0,0.00022191,2]
[387441235,1758730252765,-480.62,0.00022191,2]
[387441237,1758730252774,-480.0,0.00022191,2]
[387441239,1758730252783,-480.0,0.00022191,2]
[387441241,1758730252792,-511.65,0.00022191,2]
[387441243,1758730252803,-329.17415662,0.00022191,2]
[387441245,1758730252815,-839.84,0.00022191,2]
[387441247,1758730252824,-150.0,0.00022284,2]
[387441249,1758730252834,-294.507,0.00022284,2]
[387441251,1758730252844,-285.0,0.00022316,2]
[387441253,1758730252854,-264.097,0.00022388,2]
[387441255,1758730252864,-480.0,0.00022464,2]
[387441257,1758730252877,-480.0,0.00022465,2]
[387441259,1758730252886,-480.0,0.00022465,2]
[387441261,1758730252897,-1050.42,0.00022465,2]
[387441263,1758730252906,-480.0,0.00022465,2]
[387441265,1758730252916,-722.17,0.00022465,2]
[387441267,1758730252926,-480.0,0.00022465,2]
[387441269,1758730252936,-480.62,0.00022465,2]
[387441271,1758730252946,-480.0,0.00022465,2]
[387441273,1758730252956,-151.0,0.00022465,7]
[387441275,1758730252966,-240.232928,0.00022465,7]
[387441277,1758730252975,-151.0,0.00022465,7]
[387441279,1758730252984,-240.232928,0.00022465,7]
[387441281,1758730252994,-240.232928,0.00022465,7]
[387441283,1758730253003,-151.0,0.00022465,7]
[387441285,1758730253012,-480.0,0.00022465,2]
[387441287,1758730253022,-240.232928,0.00022465,7]
[387441289,1758730253032,-511.65,0.00022465,2]
[387441291,1758730253042,-151.0,0.00022465,7]
[387441293,1758730253051,-839.84,0.00022465,2]
[387441295,1758730253061,-151.0,0.00022465,7]
[387441297,1758730253071,-285.0,0.00022469,2]
[387441300,1758730253081,-285.0,0.00022482,2]
[387441301,1758730253090,-1016.0,0.00022483,2]
[387441304,1758730253101,-603.13420665,0.00022502,2]
[387441306,1758730253111,-980.57280926,0.00022523,2]
[387441308,1758730253120,-460.0,0.00022644,2]
[387441310,1758730253132,-1000.0,0.00022725,5]
[387441312,1758730253142,-480.0,0.00022738,2]
[387441323,1758730253152,-480.0,0.00022739,2]
[387441325,1758730253256,-480.0,0.00022739,2]
[387441327,1758730253266,-1050.42,0.00022739,2]
[387441329,1758730253277,-480.0,0.00022739,2]
[387441331,1758730253286,-722.17,0.00022739,2]
[387441333,1758730253295,-480.0,0.00022739,2]
[387441336,1758730253305,-480.62,0.00022739,2]
[387441338,1758730253314,-480.0,0.00022739,2]
[387441340,1758730253324,-275.48965702,0.00022739,2]
[387441342,1758730253333,-511.65,0.00022739,2]
[387441343,1758730253343,-839.84,0.00022739,2]
[387441345,1758730253353,-587.0,0.00022775,2]
[387441347,1758730253362,-151.0,0.000228,10]
[387441350,1758730253372,-285.0,0.00022888,2]
[387441352,1758730253382,-480.0,0.00023012,2]
[387441354,1758730253392,-581.54966644,0.00023013,2]
[387441356,1758730253401,-480.0,0.00023013,2]
[387441358,1758730253411,-1050.42,0.00023013,2]
[387441360,1758730253420,-480.0,0.00023013,2]
[387441362,1758730253430,-722.17,0.00023013,2]
[387441364,1758730253439,-480.0,0.00023013,2]
[387441366,1758730253448,-480.62,0.00023013,2]
[387441368,1758730253458,-480.0,0.00023013,2]
[387441370,1758730253467,-511.65,0.00023013,2]
[387441372,1758730253477,-839.84,0.00023013,2]
[387441374,1758730253486,-500.0,0.0002311,2]
[387441376,1758730253495,-500.0,0.0002311,2]
[387441378,1758730253505,-151.0,0.0002311,2]
[387441380,1758730253514,-151.0,0.0002311,2]
[387441382,1758730253523,-151.0,0.0002311,2]
[387441384,1758730253533,-151.0,0.0002311,2]
[387441386,1758730253543,-151.55455188,0.0002311,2]
[387441388,1758730253552,-151.45944655,0.0002311,2]
[387441390,1758730253562,-151.0,0.0002311,2]
[387441392,1758730253571,-151.0,0.0002311,2]
[387441394,1758730253581,-151.0,0.0002311,2]
[387441396,1758730253590,-500.0,0.0002311,2]
[387441398,1758730253599,-151.0,0.0002311,2]
[387441400,1758730253609,-151.0,0.0002311,2]
[387441402,1758730253619,-2786.951718,0.00023116,2]
[387441404,1758730253629,-9390.711143,0.00023158,2]
[387441406,1758730253641,-560.0,0.00023192,2]
[387441408,1758730253651,-480.0,0.00023219,2]
[387441410,1758730253660,-480.0,0.00023219,2]
[387441412,1758730253671,-481.27590948,0.00023219,2]
[387441414,1758730253681,-480.0,0.00023219,2]
[387441416,1758730253692,-52860.3969502,0.0002322,2]
[387441421,1758730253732,-94812.41631216,0.0002322,2]
[387441423,1758730253742,-6111.21937867,0.0002322,7]
[387441425,1758730253753,-160.0,0.0002322,7]
[387441427,1758730253762,-151.0,0.0002322,7]
[387441429,1758730253772,-151.0,0.0002322,7]
[387441431,1758730253782,-168.139953,0.0002322,7]
[387441433,1758730253791,-151.0,0.0002322,7]
[387441435,1758730253801,-151.0,0.0002322,7]
[387441437,1758730253812,-151.0,0.0002322,7]
[387441439,1758730253824,-151.0,0.0002322,7]
[387441441,1758730253833,-193.749356,0.0002322,7]
[387441443,1758730253843,-151.0,0.0002322,7]
[387441445,1758730253852,-301.309989,0.0002322,7]
[387441447,1758730253862,-151.0,0.0002322,7]
[387441449,1758730253873,-151.0,0.0002322,7]
[387441451,1758730253884,-151.0,0.0002322,7]
[387441453,1758730253894,-182.686677,0.0002322,7]
[387441456,1758730253904,-182.686677,0.0002322,7]
[387441457,1758730253914,-182.686677,0.0002322,7]
[387441459,1758730253924,-182.686677,0.0002322,7]
[387441462,1758730253933,-151.0,0.0002322,7]
[387441463,1758730253943,-151.0,0.0002322,7]
[387441465,1758730253953,-151.0,0.0002322,7]
[387441467,1758730253963,-151.0,0.0002322,7]
[387441469,1758730253972,-174.947331,0.0002322,7]
[387441472,1758730253982,-174.947331,0.0002322,7]
[387441474,1758730253992,-174.947331,0.0002322,7]
[387441475,1758730254001,-174.947331,0.0002322,7]
[387441477,1758730254012,-151.0,0.0002322,7]
[387441479,1758730254021,-151.0,0.0002322,7]
[387441481,1758730254030,-151.0,0.0002322,7]
[387441483,1758730254040,-226.62276,0.0002322,7]
[387441485,1758730254049,-151.0,0.0002322,7]
[387441487,1758730254059,-226.62276,0.0002322,7]
[387441489,1758730254068,-191.567414,0.0002322,7]
[387441491,1758730254078,-226.62276,0.0002322,7]
[387441493,1758730254088,-226.62276,0.0002322,7]
[387441495,1758730254097,-151.0,0.0002322,7]
[387441497,1758730254106,-151.0,0.0002322,7]
[387441499,1758730254116,-151.0,0.0002322,7]
[387441501,1758730254126,-151.0,0.0002322,7]
[387441503,1758730254135,-151.0,0.0002322,7]
[387441505,1758730254145,-296.634928,0.0002322,7]
[387441507,1758730254154,-240.232928,0.0002322,7]
[387441509,1758730254164,-151.0,0.0002322,7]
[387441511,1758730254173,-240.232928,0.0002322,7]
[387441513,1758730254183,-240.232928,0.0002322,7]
[387441515,1758730254192,-151.0,0.0002322,7]
[387441517,1758730254201,-240.232928,0.0002322,7]
[387441518,1758730254211,-151.0,0.0002322,7]
[387441521,1758730254221,-170.347687,0.0002322,7]
[387441523,1758730254230,-151.0,0.0002322,7]
[387441524,1758730254240,-170.347687,0.0002322,7]
[387441526,1758730254249,-480.0,0.00023286,2]
[387441528,1758730254261,-9520.43542339,0.00023287,7]
[387441530,1758730254271,-532.2324375,0.00023287,7]
[387441532,1758730254281,-151.0,0.00023287,7]
[387441534,1758730254291,-151.0,0.00023287,7]
[387441536,1758730254300,-151.0,0.00023287,7]
[387441538,1758730254310,-151.0,0.00023287,7]
[387441540,1758730254320,-151.0,0.00023287,7]
[387441542,1758730254329,-151.0,0.00023287,7]
[387441544,1758730254339,-151.0,0.00023287,7]
[387441546,1758730254348,-151.0,0.00023287,7]
[387441548,1758730254358,-151.0,0.00023287,7]
[387441550,1758730254368,-151.0,0.00023287,7]
[387441552,1758730254377,-507.64538971,0.00023287,2]
[387441554,1758730254387,-843.48,0.00023287,2]
[387441556,1758730254397,-480.0,0.00023287,2]
[387441558,1758730254406,-1050.42,0.00023287,2]
[387441560,1758730254416,-480.0,0.00023287,2]
[387441562,1758730254425,-722.17,0.00023287,2]
[387441564,1758730254435,-480.0,0.00023287,2]
[387441566,1758730254444,-480.62,0.00023287,2]
[387441568,1758730254454,-480.0,0.00023287,2]
[387441570,1758730254463,-511.65,0.00023287,2]
[387441572,1758730254473,-839.84,0.00023287,2]
[387441574,1758730254482,-160.0,0.0002329,7]
[387441576,1758730254491,-285.0,0.0002331,2]
[387441578,1758730254501,-4725.92338803,0.0002334,2]
[387441580,1758730254510,-168.0,0.00023343,2]
[387441582,1758730254519,-285.0,0.00023346,2]
[387441584,1758730254529,-500.0,0.00023384,2]
[387441586,1758730254539,-500.0,0.00023384,2]
[387441588,1758730254549,-151.0,0.00023384,2]
[387441591,1758730254570,-151.0,0.00023384,2]
[387441593,1758730254580,-151.0,0.00023384,2]
[387441595,1758730254590,-151.0,0.00023384,2]
[387441597,1758730254600,-151.0,0.00023384,2]
[387441599,1758730254610,-154.75225701,0.00023384,2]
[387441601,1758730254620,-500.0,0.00023384,2]
[387441603,1758730254630,-151.0,0.00023384,2]
[387441605,1758730254640,-283.02767156,0.000234,2]
[387441607,1758730254650,-1270.0,0.00023419,2]
[387441609,1758730254659,-800.0,0.00023431,2]
[387441611,1758730254669,-632.56824802,0.0002344,2]
[387441613,1758730254679,-599979.05546721,0.0002344,2]
[387441615,1758730254688,-151.0,0.0002344,7]
[387441617,1758730254699,-151.0,0.0002344,7]
[387441619,1758730254709,-151.0,0.0002344,7]
[387441621,1758730254719,-151.0,0.0002344,7]
[387441623,1758730254728,-151.0,0.0002344,7]
[387441625,1758730254738,-151.0,0.0002344,7]
[387441627,1758730254748,-151.0,0.0002344,7]
[387441629,1758730254758,-151.0,0.0002344,7]
[387441631,1758730254768,-154.909956,0.0002344,7]
[387441633,1758730254777,-196.2648,0.0002344,7]
[387441634,1758730254787,-151.0,0.0002344,7]
[387441636,1758730254797,-151.0,0.0002344,7]
[387441639,1758730254807,-151.0,0.0002344,7]
[387441640,1758730254820,-151.0,0.0002344,7]
[387441642,1758730254830,-151.0,0.0002344,7]
[387441644,1758730254840,-151.0,0.0002344,7]
[387441646,1758730254850,-151.0,0.0002344,7]
[387441648,1758730254860,-151.0,0.0002344,7]
[387441650,1758730254869,-151.0,0.0002344,7]
[387441652,1758730254879,-152.748177,0.0002344,7]
[387441654,1758730254890,-182.686677,0.0002344,7]
[387441656,1758730254902,-182.686677,0.0002344,7]
[387441658,1758730254912,-182.686677,0.0002344,7]
[387441660,1758730254922,-182.686677,0.0002344,7]
[387441662,1758730254932,-151.0,0.0002344,7]
[387441664,1758730254942,-152.004238,0.0002344,7]
[387441666,1758730254952,-151.0,0.0002344,7]
[387441668,1758730254962,-151.0,0.0002344,7]
[387441670,1758730254972,-174.947331,0.0002344,7]
[387441672,1758730254981,-174.947331,0.0002344,7]
[387441674,1758730254991,-174.947331,0.0002344,7]
[387441676,1758730255001,-174.947331,0.0002344,7]
[387441678,1758730255010,-151.0,0.0002344,7]
[387441680,1758730255020,-151.0,0.0002344,7]
[387441682,1758730255030,-151.0,0.0002344,7]
[387441684,1758730255039,-226.62276,0.0002344,7]
[387441686,1758730255049,-151.0,0.0002344,7]
[387441688,1758730255059,-226.62276,0.0002344,7]
[387441690,1758730255069,-226.62276,0.0002344,7]
[387441692,1758730255078,-226.62276,0.0002344,7]
[387441694,1758730255088,-151.0,0.0002344,7]
[387441696,1758730255097,-151.0,0.0002344,7]
[387441698,1758730255107,-151.0,0.0002344,7]
[387441700,1758730255117,-151.0,0.0002344,7]
[387441702,1758730255126,-240.232928,0.0002344,7]
[387441704,1758730255136,-240.232928,0.0002344,7]
[387441706,1758730255146,-240.232928,0.0002344,7]
[387441708,1758730255156,-240.232928,0.0002344,7]
[387441710,1758730255166,-170.347687,0.0002344,7]
[387441712,1758730255175,-151.0,0.0002344,7]
[387441714,1758730255184,-170.347687,0.0002344,7]
[387441715,1758730255194,-400.0,0.00023464,2]
[387441717,1758730255204,-211.0,0.00023466,2]
[387441719,1758730255214,-481.4539951,0.00023493,2]
[387441721,1758730255224,-14206.72,0.000235,2]
[387441723,1758730255234,-1000.0,0.000235,2]
[387441725,1758730255243,-221.61069034,0.00023526,7]
[387441727,1758730255253,-159.99254359,0.00023532,7]
[387441729,1758730255263,-198.94409734,0.00023535,2]
[387441731,1758730255273,-480.0,0.0002356,2]
[387441733,1758730255283,-480.0,0.00023561,2]
[387441735,1758730255292,-1050.42,0.00023561,2]
[387441737,1758730255302,-480.0,0.00023561,2]
[387441739,1758730255312,-722.17,0.00023561,2]
[387441741,1758730255321,-480.0,0.00023561,2]
[387441743,1758730255332,-480.62,0.00023561,2]
[387441745,1758730255342,-480.0,0.00023561,2]
[387441747,1758730255352,-511.65,0.00023561,2]
[387441761,1758730255476,-839.84,0.00023561,2]
[387441763,1758730255487,-800.0,0.00023595,2]
[387441765,1758730255497,-400.0,0.0002363,2]
[387441767,1758730255507,-800.0,0.00023634,2]
[387441769,1758730255516,-500.0,0.00023635,2]
[387441770,1758730255525,-400.0,0.00023644,2]
[387441772,1758730255535,-800.0,0.00023648,2]
[387441774,1758730255545,-800.0,0.00023649,2]
[387441776,1758730255555,-500.0,0.00023658,2]
[387441778,1758730255564,-255.0,0.00023658,2]
[387441780,1758730255574,-151.0,0.00023658,2]
[387441782,1758730255583,-151.0,0.00023658,2]
[387441784,1758730255593,-236.5989793,0.00023658,2]
[387441786,1758730255603,-198.0,0.00023658,2]
[387441788,1758730255612,-500.0,0.00023658,2]
[387441790,1758730255622,-800.0,0.00023661,2]
[387441792,1758730255633,-168.0,0.00023663,2]
[387441794,1758730255642,-800.0,0.00023667,2]
[387441796,1758730255652,-164.0,0.00023687,3]
[387441798,1758730255661,-164.0,0.00023687,3]
[387441800,1758730255671,-164.0,0.00023687,3]
[387441802,1758730255681,-164.0,0.00023687,3]
[387441804,1758730255690,-166.16267493,0.00023687,3]
[387441806,1758730255700,-285.0,0.00023688,2]
[387441808,1758730255709,-168.0,0.00023736,2]
[387441810,1758730255718,-660.0,0.0002374,2]
[387441812,1758730255728,-800.0,0.00023772,2]
[387441814,1758730255739,-1600.0,0.00023789,2]
[387441816,1758730255748,-800.0,0.00023795,2]
[387441818,1758730255758,-44388.38757124,0.000238,2]
[387441820,1758730255767,-800.0,0.00023802,2]
[387441822,1758730255776,-800.0,0.00023809,2]
[387441823,1758730255786,-221.42691504,0.00023809,2]
[387441825,1758730255796,-800.0,0.0002382,2]
[387441827,1758730255806,-480.0,0.00023834,2]
[387441829,1758730255819,-200.0,0.00023835,2]
[387441831,1758730255829,-200.0,0.00023835,2]
[387441833,1758730255839,-200.0,0.00023835,2]
[387441835,1758730255848,-200.0,0.00023835,2]
[387441837,1758730255859,-200.0,0.00023835,2]
[387441839,1758730255869,-200.0,0.00023835,2]
[387441841,1758730255879,-200.0,0.00023835,2]
[387441843,1758730255889,-200.0,0.00023835,2]
[387441845,1758730255899,-200.0,0.00023835,2]
[387441847,1758730255909,-200.0,0.00023835,2]
[387441849,1758730255919,-200.0,0.00023835,2]
[387441851,1758730255928,-200.0,0.00023835,2]
[387441853,1758730255938,-200.0,0.00023835,2]
[387441855,1758730255948,-200.0,0.00023835,2]
[387441857,1758730255957,-200.0,0.00023835,2]
[387441859,1758730255967,-200.0,0.00023835,2]
[387441860,1758730255976,-200.0,0.00023835,2]
[387441862,1758730255985,-200.0,0.00023835,2]
[387441864,1758730255995,-480.0,0.00023835,2]
[387441866,1758730256004,-1050.42,0.00023835,2]
[387441868,1758730256014,-480.0,0.00023835,2]
[387441870,1758730256024,-722.17,0.00023835,2]
[387441872,1758730256033,-480.0,0.00023835,2]
[387441874,1758730256043,-480.62,0.00023835,2]
[387441876,1758730256052,-480.0,0.00023835,2]
[387441878,1758730256062,-511.65,0.00023835,2]
[387441880,1758730256072,-839.84,0.00023835,2]
[387441882,1758730256081,-800.0,0.00023836,2]
[387441884,1758730256091,-164.0,0.00023841,3]
[387441886,1758730256100,-800.0,0.00023842,2]
[387441888,1758730256110,-168.0,0.00023847,2]